[Event "*** SCC Grand Prix: Titled Tuesday Blitz"]
[Site "Chess.com"]
[Date "2020.10.06"]
[Round "4"]
[White "doons21"]
[Black "PavelChernomordik"]
[Result "1-0"]
[WhiteElo "2609"]
[BlackElo "2363"]
[TimeControl "180+1"]
[EndTime "10:38:54 PDT"]
[Termination "doons21 won on time"]

1. e4 {[%clk 0:03:00.9]} 1... g6 {[%clk 0:02:58.4]} 2. d4 {[%clk 0:02:58.8]}
2... Bg7 {[%clk 0:02:58.9]} 3. c3 {[%clk 0:02:58.5]} 3... d6 {[%clk 0:02:56.6]}
4. Nf3 {[%clk 0:02:51.3]} 4... Nf6 {[%clk 0:02:55]} 5. Bd3 {[%clk 0:02:44.4]}
5... O-O {[%clk 0:02:53.7]} 6. h3 {[%clk 0:02:42.7]} 6... c5 {[%clk 0:02:53.9]}
7. O-O {[%clk 0:02:41.5]} 7... Nc6 {[%clk 0:02:52.5]} 8. d5 {[%clk 0:02:39.1]}
8... Nb8 {[%clk 0:02:51.6]} 9. Nbd2 {[%clk 0:02:24.7]} 9... e5 {[%clk
0:02:49.7]} 10. a4 {[%clk 0:02:22.6]} 10... Nh5 {[%clk 0:02:40.1]} 11. Nc4
{[%clk 0:02:17]} 11... h6 {[%clk 0:02:32.5]} 12. Nh2 {[%clk 0:02:06]} 12... Qe7
{[%clk 0:02:20.7]} 13. b4 {[%clk 0:01:49.7]} 13... b6 {[%clk 0:02:17.3]} 14. b5
{[%clk 0:01:43.3]} 14... Nf4 {[%clk 0:02:07.7]} 15. a5 {[%clk 0:01:38.8]} 15...
bxa5 {[%clk 0:02:00.8]} 16. Rxa5 {[%clk 0:01:22.1]} 16... Nxd3 {[%clk
0:01:40.4]} 17. Qxd3 {[%clk 0:01:21.1]} 17... f5 {[%clk 0:01:40.8]} 18. Nb6
{[%clk 0:01:12.6]} 18... fxe4 {[%clk 0:01:29.9]} 19. Qe2 {[%clk 0:01:09.2]}
19... axb6 {[%clk 0:01:19.8]} 20. Rxa8 {[%clk 0:01:10.1]} 20... Bf5 {[%clk
0:00:59]} 21. c4 {[%clk 0:01:07.8]} 21... g5 {[%clk 0:00:47.6]} 22. Bb2 {[%clk
0:01:00.9]} 22... Nd7 {[%clk 0:00:46.1]} 23. Rfa1 {[%clk 0:00:58.2]} 23... Nf6
{[%clk 0:00:41.3]} 24. R1a7 {[%clk 0:00:54.6]} 24... Bd7 {[%clk 0:00:39.1]} 25.
Rxf8+ {[%clk 0:00:48.9]} 25... Qxf8 {[%clk 0:00:35.1]} 26. Rb7 {[%clk
0:00:42.5]} 26... Qd8 {[%clk 0:00:30.7]} 27. Bc3 {[%clk 0:00:41.4]} 27... Bf5
{[%clk 0:00:26]} 28. Qa2 {[%clk 0:00:39.2]} 28... Nh5 {[%clk 0:00:22.5]} 29. Qa7
{[%clk 0:00:38.5]} 29... Qf6 {[%clk 0:00:21.6]} 30. Qb8+ {[%clk 0:00:29.9]}
30... Kh7 {[%clk 0:00:19.9]} 31. Rxb6 {[%clk 0:00:28.9]} 31... e3 {[%clk
0:00:18.2]} 32. fxe3 {[%clk 0:00:28.6]} 32... Ng3 {[%clk 0:00:15.1]} 33. Qxd6
{[%clk 0:00:26.4]} 33... Be6 {[%clk 0:00:10.4]} 34. Nf3 {[%clk 0:00:19.3]} 34...
Ne2+ {[%clk 0:00:04.6]} 35. Kh2 {[%clk 0:00:18.9]} 1-0

[Event "*** SCC Grand Prix: Titled Tuesday Blitz"]
[Site "Chess.com"]
[Date "2020.10.06"]
[Round "4"]
[White "Tactictic"]
[Black "ExcitingTrap"]
[Result "0-1"]
[WhiteElo "2424"]
[BlackElo "2273"]
[TimeControl "180+1"]
[EndTime "10:38:54 PDT"]
[Termination "ExcitingTrap won on time"]

1. e4 {[%clk 0:03:00.9]} 1... e6 {[%clk 0:02:59.9]} 2. d4 {[%clk 0:03:00.7]}
2... d5 {[%clk 0:02:59.8]} 3. Nd2 {[%clk 0:03:01.3]} 3... Nf6 {[%clk 0:03:00]}
4. e5 {[%clk 0:03:01.9]} 4... Nfd7 {[%clk 0:03:00.3]} 5. Bd3 {[%clk 0:03:02.3]}
5... c5 {[%clk 0:03:00.6]} 6. c3 {[%clk 0:03:02.5]} 6... Nc6 {[%clk 0:03:00.6]}
7. Ne2 {[%clk 0:03:02.9]} 7... cxd4 {[%clk 0:03:00.7]} 8. cxd4 {[%clk 0:03:03]}
8... f6 {[%clk 0:03:01.1]} 9. exf6 {[%clk 0:03:03.7]} 9... Nxf6 {[%clk 0:03:01]}
10. O-O {[%clk 0:03:00.8]} 10... Bd6 {[%clk 0:03:01]} 11. Nf3 {[%clk 0:03:00.9]}
11... Qc7 {[%clk 0:03:01.2]} 12. Bg5 {[%clk 0:02:57.2]} 12... O-O {[%clk
0:03:01.5]} 13. Rc1 {[%clk 0:02:43.9]} 13... Bd7 {[%clk 0:03:00.6]} 14. Re1
{[%clk 0:02:40.3]} 14... h6 {[%clk 0:03:00.9]} 15. Bh4 {[%clk 0:02:40]} 15...
Nh5 {[%clk 0:03:01]} 16. Bg6 {[%clk 0:02:16.3]} 16... Rxf3 {[%clk 0:02:38.1]}
17. gxf3 {[%clk 0:02:09.2]} 17... Bxh2+ {[%clk 0:02:37.6]} 18. Kg2 {[%clk
0:02:07.2]} 18... Nf4+ {[%clk 0:02:37.1]} 19. Nxf4 {[%clk 0:02:05.8]} 19... Bxf4
{[%clk 0:02:24.3]} 20. Bg3 {[%clk 0:02:05.4]} 20... Rf8 {[%clk 0:02:23.2]} 21.
Rc2 {[%clk 0:01:48.8]} 21... Qb6 {[%clk 0:02:13.6]} 22. Bxf4 {[%clk 0:01:20.4]}
22... Rxf4 {[%clk 0:02:14.5]} 23. Rd2 {[%clk 0:01:13.4]} 23... Nxd4 {[%clk
0:02:10]} 24. Re3 {[%clk 0:01:07.9]} 24... Nf5 {[%clk 0:01:52.8]} 25. Rxd5
{[%clk 0:00:52.6]} 25... Nxe3+ {[%clk 0:00:58.9]} 26. fxe3 {[%clk 0:00:50.7]}
26... exd5 {[%clk 0:00:59.2]} 27. Qxd5+ {[%clk 0:00:23]} 27... Be6 {[%clk
0:00:58.5]} 28. Qe5 {[%clk 0:00:23]} 28... Rf6 {[%clk 0:00:49.5]} 29. Be4 {[%clk
0:00:17.3]} 29... Qd8 {[%clk 0:00:42.7]} 30. Kg3 {[%clk 0:00:11.5]} 30... Bf7
{[%clk 0:00:39.2]} 31. f4 {[%clk 0:00:10.4]} 31... Qd6 {[%clk 0:00:33]} 32. Qc3
{[%clk 0:00:08.6]} 32... b6 {[%clk 0:00:22.4]} 33. Kf2 {[%clk 0:00:05.8]} 33...
Re6 {[%clk 0:00:20.6]} 34. Bc2 {[%clk 0:00:02.2]} 34... Re8 {[%clk 0:00:17.2]}
0-1

[Event "*** SCC Grand Prix: Titled Tuesday Blitz"]
[Site "Chess.com"]
[Date "2020.10.06"]
[Round "4"]
[White "TrickyFortem"]
[Black "Carnivoras"]
[Result "0-1"]
[WhiteElo "2476"]
[BlackElo "2675"]
[TimeControl "180+1"]
[EndTime "10:38:55 PDT"]
[Termination "Carnivoras won by resignation"]

1. d4 {[%clk 0:03:00.9]} 1... d5 {[%clk 0:02:56.2]} 2. c4 {[%clk 0:03:01.1]}
2... c6 {[%clk 0:02:56.2]} 3. Nf3 {[%clk 0:03:01.5]} 3... e6 {[%clk 0:02:57.1]}
4. Nc3 {[%clk 0:03:01.4]} 4... Nf6 {[%clk 0:02:57.7]} 5. e3 {[%clk 0:03:00.7]}
5... Nbd7 {[%clk 0:02:56.1]} 6. Bd3 {[%clk 0:03:01]} 6... Bd6 {[%clk 0:02:56.5]}
7. O-O {[%clk 0:02:58.9]} 7... dxc4 {[%clk 0:02:56.1]} 8. Bxc4 {[%clk
0:02:59.1]} 8... O-O {[%clk 0:02:56.7]} 9. e4 {[%clk 0:02:55.3]} 9... e5 {[%clk
0:02:54.7]} 10. Bg5 {[%clk 0:02:54.4]} 10... h6 {[%clk 0:02:49.9]} 11. Bh4
{[%clk 0:02:54.3]} 11... exd4 {[%clk 0:02:49.8]} 12. Qxd4 {[%clk 0:02:52.7]}
12... Qe7 {[%clk 0:02:41.5]} 13. Rad1 {[%clk 0:02:50]} 13... Bc7 {[%clk
0:02:23.3]} 14. Rfe1 {[%clk 0:02:43.7]} 14... Ne5 {[%clk 0:02:22.8]} 15. Nxe5
{[%clk 0:02:38.5]} 15... Bxe5 {[%clk 0:02:23.3]} 16. Qe3 {[%clk 0:02:38.7]}
16... Bxh2+ {[%clk 0:02:08.8]} 17. Kxh2 {[%clk 0:02:38.6]} 17... Ng4+ {[%clk
0:02:09]} 18. Kg3 {[%clk 0:02:37.7]} 18... g5 {[%clk 0:01:50.7]} 19. Bxg5 {[%clk
0:02:28.9]} 19... hxg5 {[%clk 0:01:48.4]} 20. Qd4 {[%clk 0:02:29.2]} 20... c5
{[%clk 0:01:42.1]} 21. Qd6 {[%clk 0:02:27.9]} 21... Qe5+ {[%clk 0:01:01.2]} 22.
Qxe5 {[%clk 0:02:26.5]} 22... Nxe5 {[%clk 0:01:02.1]} 23. Bd5 {[%clk 0:02:24.6]}
23... Be6 {[%clk 0:00:57.7]} 24. Bxe6 {[%clk 0:02:19.9]} 24... fxe6 {[%clk
0:00:58.6]} 25. Rd6 {[%clk 0:02:20.1]} 25... Kf7 {[%clk 0:00:56.8]} 26. Rh1
{[%clk 0:02:16.7]} 26... Rh8 {[%clk 0:00:55.5]} 27. Rxh8 {[%clk 0:02:16.2]}
27... Rxh8 {[%clk 0:00:56.1]} 28. f4 {[%clk 0:02:03]} 28... gxf4+ {[%clk
0:00:54.3]} 29. Kxf4 {[%clk 0:02:03.9]} 29... Ke7 {[%clk 0:00:45.3]} 30. Rd2
{[%clk 0:02:02.5]} 30... Nc4 {[%clk 0:00:42.8]} 31. Re2 {[%clk 0:01:59.6]} 31...
Rf8+ {[%clk 0:00:42.4]} 32. Kg3 {[%clk 0:01:58.5]} 32... Rg8+ {[%clk 0:00:39]}
33. Kf2 {[%clk 0:01:55.5]} 33... Ne5 {[%clk 0:00:38.6]} 34. Ke1 {[%clk 0:01:53]}
34... a6 {[%clk 0:00:38.1]} 35. Kd2 {[%clk 0:01:52.4]} 35... b5 {[%clk
0:00:38.1]} 36. Kc2 {[%clk 0:01:52.4]} 36... Ng6 {[%clk 0:00:34.3]} 37. Rf2
{[%clk 0:01:50.2]} 37... Nh4 {[%clk 0:00:34]} 38. a4 {[%clk 0:01:38]} 38... b4
{[%clk 0:00:28.9]} 39. Ne2 {[%clk 0:01:37.9]} 39... Rxg2 {[%clk 0:00:22.9]} 40.
Rxg2 {[%clk 0:01:37.9]} 40... Nxg2 {[%clk 0:00:23.8]} 41. Kd3 {[%clk 0:01:38.6]}
41... Kd6 {[%clk 0:00:22.7]} 42. b3 {[%clk 0:01:37]} 42... Ne1+ {[%clk
0:00:20.6]} 43. Kc4 {[%clk 0:01:36.7]} 43... Nf3 {[%clk 0:00:20.9]} 44. Kd3
{[%clk 0:01:34]} 44... Ne5+ {[%clk 0:00:21.1]} 45. Kc2 {[%clk 0:01:32.4]} 45...
Nc6 {[%clk 0:00:21.8]} 46. Kd3 {[%clk 0:01:31.9]} 46... Ke5 {[%clk 0:00:20.7]}
47. Ng1 {[%clk 0:01:28.8]} 47... Nd4 {[%clk 0:00:18.7]} 48. Kc4 {[%clk
0:01:29.2]} 48... Kxe4 {[%clk 0:00:15.5]} 49. Kxc5 {[%clk 0:01:29.6]} 49... a5
{[%clk 0:00:16]} 50. Kc4 {[%clk 0:01:29.4]} 50... e5 {[%clk 0:00:16.4]} 51. Nh3
{[%clk 0:01:28.1]} 51... Ke3 {[%clk 0:00:16.7]} 52. Ng5 {[%clk 0:01:24.6]} 52...
e4 {[%clk 0:00:16.3]} 53. Kd5 {[%clk 0:01:24.3]} 53... Nxb3 {[%clk 0:00:16.2]}
54. Nxe4 {[%clk 0:01:24.8]} 54... Kd3 {[%clk 0:00:16.3]} 55. Nf2+ {[%clk
0:01:20.2]} 55... Kc2 {[%clk 0:00:16.4]} 56. Kc4 {[%clk 0:01:19.3]} 56... Nd2+
{[%clk 0:00:15.6]} 57. Kb5 {[%clk 0:01:18.6]} 57... b3 {[%clk 0:00:16]} 58. Kxa5
{[%clk 0:01:18.6]} 58... b2 {[%clk 0:00:16.4]} 59. Ka6 {[%clk 0:01:17.1]} 59...
b1=Q {[%clk 0:00:16.7]} 60. a5 {[%clk 0:01:17]} 60... Nc4 {[%clk 0:00:15.1]} 61.
Ne4 {[%clk 0:01:16.2]} 61... Qa2 {[%clk 0:00:14.4]} 62. Kb5 {[%clk 0:01:15]}
62... Kd3 {[%clk 0:00:12.6]} 63. Nc5+ {[%clk 0:01:14.7]} 63... Kd4 {[%clk
0:00:12.9]} 64. Na4 {[%clk 0:01:13.6]} 64... Qb3+ {[%clk 0:00:12.4]} 65. Ka6
{[%clk 0:01:13.6]} 65... Qxa4 {[%clk 0:00:12.4]} 0-1

[Event "*** SCC Grand Prix: Titled Tuesday Blitz"]
[Site "Chess.com"]
[Date "2020.10.06"]
[Round "4"]
[White "Gerodot71"]
[Black "Denis_Makhnyov"]
[Result "0-1"]
[WhiteElo "2476"]
[BlackElo "2915"]
[TimeControl "180+1"]
[EndTime "10:38:55 PDT"]
[Termination "Denis_Makhnyov won by resignation"]

1. d4 {[%clk 0:03:00.9]} 1... Nf6 {[%clk 0:02:56.7]} 2. c4 {[%clk 0:03:01.4]}
2... e6 {[%clk 0:02:56.7]} 3. Nf3 {[%clk 0:03:01.4]} 3... b6 {[%clk 0:02:55.8]}
4. a3 {[%clk 0:03:00.6]} 4... Ba6 {[%clk 0:02:52]} 5. Qc2 {[%clk 0:03:00.2]}
5... c5 {[%clk 0:02:51.5]} 6. d5 {[%clk 0:03:00.7]} 6... exd5 {[%clk 0:02:50.8]}
7. cxd5 {[%clk 0:03:01.6]} 7... g6 {[%clk 0:02:48.1]} 8. Nc3 {[%clk 0:03:01.3]}
8... d6 {[%clk 0:02:46]} 9. h4 {[%clk 0:02:37.5]} 9... Bg7 {[%clk 0:02:44.1]}
10. Bd2 {[%clk 0:02:24.3]} 10... O-O {[%clk 0:02:39.3]} 11. h5 {[%clk
0:02:10.4]} 11... Nbd7 {[%clk 0:02:37.8]} 12. O-O-O {[%clk 0:02:03.4]} 12... Ng4
{[%clk 0:02:14.9]} 13. Be1 {[%clk 0:01:57.3]} 13... f5 {[%clk 0:01:48.4]} 14. g3
{[%clk 0:01:46.5]} 14... Qf6 {[%clk 0:01:39.8]} 15. Bg2 {[%clk 0:01:17.4]} 15...
Rae8 {[%clk 0:01:36.7]} 16. e3 {[%clk 0:01:09]} 16... b5 {[%clk 0:01:17.4]} 17.
Ne2 {[%clk 0:01:01.5]} 17... b4 {[%clk 0:00:43.1]} 18. a4 {[%clk 0:00:58]} 18...
Rxe3 {[%clk 0:00:36.4]} 19. fxe3 {[%clk 0:00:42.1]} 19... Nxe3 {[%clk
0:00:36.4]} 20. Qd2 {[%clk 0:00:42.5]} 20... Nxg2 {[%clk 0:00:36.5]} 21. Nf4
{[%clk 0:00:40.4]} 21... Ne3 {[%clk 0:00:31.6]} 22. Ne6 {[%clk 0:00:36.9]} 22...
Nxd1 {[%clk 0:00:31.1]} 23. Kxd1 {[%clk 0:00:29.6]} 23... Qxb2 {[%clk
0:00:25.5]} 24. Qxb2 {[%clk 0:00:21.6]} 24... Bxb2 {[%clk 0:00:25.1]} 25. Nxf8
{[%clk 0:00:22.5]} 25... Kxf8 {[%clk 0:00:22.2]} 26. Kc2 {[%clk 0:00:20.1]}
26... Bf6 {[%clk 0:00:20.3]} 27. hxg6 {[%clk 0:00:19.7]} 27... hxg6 {[%clk
0:00:20]} 28. Rh7 {[%clk 0:00:20.2]} 28... Ke8 {[%clk 0:00:20.2]} 29. Bd2 {[%clk
0:00:18.6]} 29... Bc4 {[%clk 0:00:15.1]} 30. Nh4 {[%clk 0:00:07.4]} 30... b3+
{[%clk 0:00:14.4]} 31. Kd1 {[%clk 0:00:03.6]} 31... b2 {[%clk 0:00:14.8]} 32.
Kc2 {[%clk 0:00:04.1]} 32... Bd3+ {[%clk 0:00:14.7]} 33. Kxd3 {[%clk 0:00:05]}
33... b1=Q+ {[%clk 0:00:14.3]} 34. Ke3 {[%clk 0:00:05.6]} 34... Qe4+ {[%clk
0:00:14.1]} 35. Kf2 {[%clk 0:00:05.4]} 35... Ne5 {[%clk 0:00:13.3]} 0-1

[Event "*** SCC Grand Prix: Titled Tuesday Blitz"]
[Site "Chess.com"]
[Date "2020.10.06"]
[Round "4"]
[White "DeGrootteZ"]
[Black "Region_07"]
[Result "1-0"]
[WhiteElo "2648"]
[BlackElo "2372"]
[TimeControl "180+1"]
[EndTime "10:38:56 PDT"]
[Termination "DeGrootteZ won by resignation"]

1. d4 {[%clk 0:02:23.1]} 1... d5 {[%clk 0:02:56.7]} 2. c4 {[%clk 0:02:21]} 2...
Nc6 {[%clk 0:02:55.9]} 3. cxd5 {[%clk 0:02:17.2]} 3... Qxd5 {[%clk 0:02:54.7]}
4. Nf3 {[%clk 0:02:17.8]} 4... e5 {[%clk 0:02:52.6]} 5. Nc3 {[%clk 0:02:17.2]}
5... Bb4 {[%clk 0:02:53]} 6. e3 {[%clk 0:02:10.9]} 6... Bg4 {[%clk 0:02:51.3]}
7. Bd2 {[%clk 0:02:09.8]} 7... Bxc3 {[%clk 0:02:49.9]} 8. bxc3 {[%clk
0:02:10.7]} 8... e4 {[%clk 0:02:50.1]} 9. c4 {[%clk 0:01:49.4]} 9... Qh5 {[%clk
0:02:39.7]} 10. Qb3 {[%clk 0:01:46.8]} 10... O-O-O {[%clk 0:02:08.8]} 11. Ng1
{[%clk 0:01:42.5]} 11... Nf6 {[%clk 0:01:57.5]} 12. Ne2 {[%clk 0:01:40.4]} 12...
Bxe2 {[%clk 0:01:55.9]} 13. Bxe2 {[%clk 0:01:41.3]} 13... Qg5 {[%clk 0:01:55.4]}
14. g3 {[%clk 0:01:37.9]} 14... h5 {[%clk 0:01:54.4]} 15. h4 {[%clk 0:01:37.4]}
15... Qf5 {[%clk 0:01:53.7]} 16. Rb1 {[%clk 0:01:36.4]} 16... b6 {[%clk
0:01:53.5]} 17. Qa4 {[%clk 0:01:33.1]} 17... Nxd4 {[%clk 0:01:40.3]} 18. exd4
{[%clk 0:01:01.6]} 18... e3 {[%clk 0:01:41.2]} 19. O-O {[%clk 0:00:59.5]} 19...
exd2 {[%clk 0:01:38.1]} 20. Qxa7 {[%clk 0:00:22.2]} 20... Qe4 {[%clk 0:01:37]}
21. c5 {[%clk 0:00:20.6]} 21... bxc5 {[%clk 0:00:41.8]} 22. dxc5 {[%clk
0:00:21.5]} 22... Qc6 {[%clk 0:00:19.5]} 23. Ba6+ {[%clk 0:00:20.2]} 23... Kd7
{[%clk 0:00:19.6]} 24. Bb5 {[%clk 0:00:20.7]} 24... Qxb5 {[%clk 0:00:19]} 25.
Rxb5 {[%clk 0:00:21.6]} 25... Kc6 {[%clk 0:00:19.4]} 26. Qa6+ {[%clk 0:00:20.2]}
26... Kd5 {[%clk 0:00:19.6]} 27. Rb2 {[%clk 0:00:20.3]} 27... Ne4 {[%clk
0:00:18.3]} 28. Rd1 {[%clk 0:00:17]} 28... Ke5 {[%clk 0:00:16.5]} 29. Qe2 {[%clk
0:00:17.4]} 29... Kf5 {[%clk 0:00:14.7]} 30. Qf3+ {[%clk 0:00:17.7]} 30... Ke5
{[%clk 0:00:14.7]} 31. Qf4+ {[%clk 0:00:17.4]} 31... Kd5 {[%clk 0:00:14.8]} 32.
Rbxd2+ {[%clk 0:00:17.6]} 32... Nxd2 {[%clk 0:00:15.5]} 33. Rxd2+ {[%clk
0:00:18.5]} 33... Kc6 {[%clk 0:00:16.1]} 34. Qe4+ {[%clk 0:00:17.9]} 34... Kb5
{[%clk 0:00:14.8]} 35. Rb2+ {[%clk 0:00:17.9]} 35... Kxc5 {[%clk 0:00:15.2]} 36.
Rc2+ {[%clk 0:00:17.9]} 36... Kb6 {[%clk 0:00:15.1]} 37. Qc6+ {[%clk 0:00:18.1]}
37... Ka7 {[%clk 0:00:14.8]} 38. Qxc7+ {[%clk 0:00:17.7]} 38... Ka8 {[%clk
0:00:14.4]} 39. Rc6 {[%clk 0:00:18]} 39... Rd1+ {[%clk 0:00:13.6]} 40. Kg2
{[%clk 0:00:18.3]} 40... Rd6 {[%clk 0:00:13.1]} 41. Rxd6 {[%clk 0:00:18.3]} 1-0

[Event "*** SCC Grand Prix: Titled Tuesday Blitz"]
[Site "Chess.com"]
[Date "2020.10.06"]
[Round "4"]
[White "Ural_bogatyr"]
[Black "bgfbfbgfbgfgf"]
[Result "0-1"]
[WhiteElo "2374"]
[BlackElo "2775"]
[TimeControl "180+1"]
[EndTime "10:38:56 PDT"]
[Termination "bgfbfbgfbgfgf won on time"]

1. e4 {[%clk 0:03:00.9]} 1... c5 {[%clk 0:02:53.7]} 2. Nf3 {[%clk 0:03:01]} 2...
d6 {[%clk 0:02:52.2]} 3. d4 {[%clk 0:03:01]} 3... cxd4 {[%clk 0:02:53.1]} 4.
Qxd4 {[%clk 0:03:01.6]} 4... Nc6 {[%clk 0:02:50.5]} 5. Bb5 {[%clk 0:03:02]} 5...
Bd7 {[%clk 0:02:45.8]} 6. Bxc6 {[%clk 0:03:02.1]} 6... Bxc6 {[%clk 0:02:46.7]}
7. Nc3 {[%clk 0:03:02.4]} 7... Nf6 {[%clk 0:02:38.3]} 8. Bg5 {[%clk 0:03:02.8]}
8... e6 {[%clk 0:02:37.5]} 9. O-O-O {[%clk 0:03:02.2]} 9... Be7 {[%clk
0:02:37.4]} 10. Qd3 {[%clk 0:03:02.5]} 10... O-O {[%clk 0:02:36.6]} 11. Nd4
{[%clk 0:03:02.9]} 11... Rc8 {[%clk 0:02:36.4]} 12. f4 {[%clk 0:03:01.1]} 12...
Re8 {[%clk 0:02:30.6]} 13. h4 {[%clk 0:02:52]} 13... a6 {[%clk 0:02:24.8]} 14.
f5 {[%clk 0:02:42.1]} 14... e5 {[%clk 0:02:16.5]} 15. Nb3 {[%clk 0:02:36.9]}
15... b5 {[%clk 0:02:06.6]} 16. Bxf6 {[%clk 0:02:36.5]} 16... Bxf6 {[%clk
0:02:06.1]} 17. Kb1 {[%clk 0:02:06]} 17... Qc7 {[%clk 0:01:53.7]} 18. Rd2 {[%clk
0:01:53.1]} 18... h5 {[%clk 0:00:36.2]} 19. Qf3 {[%clk 0:01:29.6]} 19... b4
{[%clk 0:00:30.6]} 20. Nd5 {[%clk 0:01:29.7]} 20... Bxd5 {[%clk 0:00:31.1]} 21.
exd5 {[%clk 0:01:30.6]} 21... e4 {[%clk 0:00:31.5]} 22. Qxh5 {[%clk 0:01:28.8]}
22... e3 {[%clk 0:00:28.9]} 23. Re2 {[%clk 0:01:28.6]} 23... a5 {[%clk
0:00:29.8]} 24. Qf3 {[%clk 0:01:12.7]} 24... a4 {[%clk 0:00:29.1]} 25. Nc1
{[%clk 0:01:13.1]} 25... a3 {[%clk 0:00:29.5]} 26. Nd3 {[%clk 0:01:05.8]} 26...
axb2 {[%clk 0:00:26.4]} 27. Rhe1 {[%clk 0:00:35.2]} 27... Qc4 {[%clk 0:00:14]}
28. Qf4 {[%clk 0:00:18.5]} 28... Bd4 {[%clk 0:00:09.8]} 29. Qxd6 {[%clk
0:00:09.9]} 29... Bc3 {[%clk 0:00:10.2]} 30. Rf1 {[%clk 0:00:01.9]} 30... Ra8
{[%clk 0:00:08.1]} 0-1

[Event "*** SCC Grand Prix: Titled Tuesday Blitz"]
[Site "Chess.com"]
[Date "2020.10.06"]
[Round "4"]
[White "louis198"]
[Black "rasmussvane"]
[Result "0-1"]
[WhiteElo "2567"]
[BlackElo "2903"]
[TimeControl "180+1"]
[EndTime "10:38:57 PDT"]
[Termination "rasmussvane won by checkmate"]

1. d4 {[%clk 0:02:59.4]} 1... d5 {[%clk 0:03:00]} 2. c4 {[%clk 0:02:59.8]} 2...
e6 {[%clk 0:03:00.3]} 3. Nc3 {[%clk 0:03:00.7]} 3... a6 {[%clk 0:03:00.4]} 4.
cxd5 {[%clk 0:02:59.1]} 4... exd5 {[%clk 0:03:01.3]} 5. Nf3 {[%clk 0:02:59.4]}
5... Nf6 {[%clk 0:03:01.4]} 6. Bg5 {[%clk 0:02:59.6]} 6... Be6 {[%clk
0:03:01.5]} 7. e3 {[%clk 0:02:59.7]} 7... Nbd7 {[%clk 0:03:01.7]} 8. Rc1 {[%clk
0:02:59.5]} 8... Bd6 {[%clk 0:03:02.1]} 9. Bd3 {[%clk 0:02:57.1]} 9... c6 {[%clk
0:03:02.3]} 10. O-O {[%clk 0:02:56.6]} 10... Qc7 {[%clk 0:03:01.4]} 11. h3
{[%clk 0:02:52.2]} 11... h6 {[%clk 0:02:59.4]} 12. Bxf6 {[%clk 0:02:50.8]} 12...
Nxf6 {[%clk 0:03:00.3]} 13. e4 {[%clk 0:02:51.4]} 13... dxe4 {[%clk 0:02:39.2]}
14. Nxe4 {[%clk 0:02:51.6]} 14... Be7 {[%clk 0:02:31.4]} 15. Nc5 {[%clk
0:02:40.8]} 15... Bd5 {[%clk 0:02:27.2]} 16. Bc4 {[%clk 0:02:40.2]} 16... O-O
{[%clk 0:02:25.7]} 17. Bxd5 {[%clk 0:02:40.4]} 17... Nxd5 {[%clk 0:02:26.6]} 18.
Re1 {[%clk 0:02:38.7]} 18... Rfd8 {[%clk 0:02:18.3]} 19. Qb3 {[%clk 0:02:34.7]}
19... Rab8 {[%clk 0:02:18.1]} 20. Nd3 {[%clk 0:02:31.5]} 20... Bf6 {[%clk
0:02:12.4]} 21. Nde5 {[%clk 0:02:31.1]} 21... Qb6 {[%clk 0:02:01.6]} 22. Qc2
{[%clk 0:01:51.6]} 22... Rbc8 {[%clk 0:02:01]} 23. a3 {[%clk 0:01:50.8]} 23...
Qc7 {[%clk 0:01:57.1]} 24. b4 {[%clk 0:01:48]} 24... Re8 {[%clk 0:01:56.3]} 25.
Qf5 {[%clk 0:01:44.8]} 25... Re7 {[%clk 0:01:48.4]} 26. Ng4 {[%clk 0:01:40.5]}
26... Rd8 {[%clk 0:01:39.9]} 27. Nfe5 {[%clk 0:01:28.4]} 27... Re6 {[%clk
0:01:31.7]} 28. Nd3 {[%clk 0:01:06.9]} 28... Rxe1+ {[%clk 0:01:26.5]} 29. Rxe1
{[%clk 0:01:06.9]} 29... Bxd4 {[%clk 0:01:26.7]} 30. Re4 {[%clk 0:00:21.9]}
30... Nf6 {[%clk 0:01:24.7]} 31. Nxf6+ {[%clk 0:00:19.1]} 31... Bxf6 {[%clk
0:01:25.6]} 32. Rg4 {[%clk 0:00:19.3]} 32... Kh8 {[%clk 0:01:13.1]} 33. g3
{[%clk 0:00:19.7]} 33... b6 {[%clk 0:00:52.8]} 34. Nf4 {[%clk 0:00:15.2]} 34...
Qe5 {[%clk 0:00:47.8]} 35. Qc2 {[%clk 0:00:13.6]} 35... Qe1+ {[%clk 0:00:42.9]}
36. Kg2 {[%clk 0:00:13.9]} 36... Rd1 {[%clk 0:00:42.8]} 37. Kf3 {[%clk
0:00:05.6]} 37... Qh1+ {[%clk 0:00:42.5]} 38. Ng2 {[%clk 0:00:06]} 38... Rg1
{[%clk 0:00:37.7]} 39. Re4 {[%clk 0:00:06.5]} 39... Qxg2+ {[%clk 0:00:36.9]} 40.
Kg4 {[%clk 0:00:07]} 40... g6 {[%clk 0:00:30.7]} 41. Qxc6 {[%clk 0:00:06.7]}
41... h5+ {[%clk 0:00:30]} 42. Kf4 {[%clk 0:00:06.9]} 42... Qxf2# {[%clk
0:00:30.1]} 0-1